lending/lending_fUSD_20250719
["ID","MTS","AMOUNT","RATE_DAILY","PERIOD"]
[373177121,1752891049087,-480.0,0.00019287,2]
[373177123,1752891049097,-480.0,0.00019287,2]
[373177125,1752891049106,-444.48291459,0.00019287,2]
[373177964,1752891149264,1153.94120593,0.00026,120]
[373177965,1752891174455,5800.0,0.00013512,2]
[373177966,1752891174935,152.8,0.00013699,2]
[373177970,1752891777215,572.38,0.00025907,120]
[373177976,1752892038648,347.66476566,0.00026,120]
[373177979,1752892094453,-298.97812047,0.0001439,2]
[373177980,1752892101342,-300.0,0.0001439,2]
[373177981,1752892105654,-160.83711201,0.0001439,2]
[373177982,1752892109400,-157.09238247,0.0001439,2]
[373177983,1752892112952,-282.07050552,0.0001439,2]
[373177984,1752892118938,-141.75180522,0.0001439,2]
[373177986,1752892156383,154.43,0.00013699,2]
[373178001,1752892232428,-220.0,0.00014999,2]
[373178002,1752892232437,-300.0,0.00014999,2]
[373178003,1752892232447,-156.0,0.00014999,2]
[373178004,1752892232456,-1200.0,0.00014999,2]
[373178005,1752892232465,-1111.99734105,0.00015,2]
[373178006,1752892232536,-4114.44602805,0.00015,2]
[373178007,1752892232595,-17738.01283334,0.00015,2]
[373178008,1752892232604,-300.0,0.000155,2]
[373178009,1752892232613,-5000.0,0.00016,2]
[373178010,1752892232623,-1680.0,0.00016499,2]
[373178011,1752892232632,-300.0,0.000165,2]
[373178012,1752892232642,-250.0,0.000165,2]
[373178013,1752892232651,-505.0,0.00016523,2]
[373178014,1752892232660,-502.99997,0.00016523,2]
[373178015,1752892232669,-1000.0,0.00016723,2]
[373178016,1752892232679,-4788.35098824,0.00016726,2]
[373178017,1752892232690,-23179.09901176,0.00016726,2]
[373178018,1752892232699,-1578.55,0.00016726,2]
[373178019,1752892232709,-598.95,0.00016726,2]
[373178020,1752892232719,-182.63180026,0.0001715,2]
[373178021,1752892232728,-1206.7,0.00017251,2]
[373178022,1752892232738,-1200.0,0.0001726,2]
[373178023,1752892232748,-2519.0,0.00017261,2]
[373178024,1752892232757,-2751.0,0.00017261,2]
[373178025,1752892232766,-314.32,0.00017262,2]
[373178026,1752892232775,-572.38,0.00017272,2]
[373178027,1752892232785,-4507.4,0.00017332,2]
[373178028,1752892232794,-150.0,0.000175,2]
[373178029,1752892232803,-598.95,0.00017562,2]
[373178030,1752892232813,-550.0,0.00017574,2]
[373178031,1752892232822,-343.9,0.00017575,2]
[373178032,1752892232831,-343.9,0.00017584,2]
[373178033,1752892232840,-343.9,0.00017593,2]
[373178034,1752892232849,-343.9,0.00017602,2]
[373178036,1752892232859,-343.9,0.00017612,2]
[373178038,1752892232868,-343.9,0.00017621,2]
[373178039,1752892232877,-343.9,0.0001763,2]
[373178040,1752892232886,-343.9,0.00017639,2]
[373178041,1752892232895,-343.9,0.00017649,2]
[373178042,1752892232904,-343.9,0.00017658,2]
[373178044,1752892232913,-343.9,0.00017667,2]
[373178045,1752892232922,-343.9,0.00017676,2]
[373178047,1752892232931,-250.0,0.00017685,2]
[373178049,1752892232940,-343.9,0.00017686,2]
[373178050,1752892232949,-343.9,0.00017695,2]
[373178051,1752892232959,-343.9,0.00017704,2]
[373178052,1752892232968,-1617.48,0.0001771,2]
[373178053,1752892232978,-343.9,0.00017714,2]
[373178054,1752892232987,-479.75,0.00017714,2]
[373178055,1752892232996,-343.9,0.00017723,2]
[373178056,1752892233005,-343.9,0.00017732,2]
[373178057,1752892233015,-597.1,0.00017733,2]
[373178058,1752892233023,-343.9,0.00017741,2]
[373178059,1752892233033,-343.9,0.00017751,2]
[373178060,1752892233042,-164.72,0.00017754,2]
[373178061,1752892233052,-200.0,0.00017775,2]
[373178062,1752892233061,-150.0,0.00017858,2]
[373178063,1752892233070,-168.01,0.00017863,2]
[373178064,1752892233079,-1837.47816315,0.00017891,2]
[373178065,1752892233088,-150.0,0.0001793,2]
[373178066,1752892233098,-1837.47816315,0.00017947,2]
[373178067,1752892233107,-1044.72,0.00018031,2]
[373178068,1752892233117,-2214.06,0.00018047,2]
[373178069,1752892233127,-478.30753071,0.00018073,2]
[373178070,1752892233137,-210.84879045,0.00018073,2]
[373178071,1752892233147,-164.68937075,0.00018095,2]
[373178072,1752892233156,-150.0,0.00018123,2]
[373178073,1752892233166,-150.0,0.00018123,2]
[373178074,1752892233175,-2351.0,0.00018149,2]
[373178075,1752892233185,-737.27,0.00018151,2]
[373178076,1752892233195,-737.27,0.00018151,2]
[373178077,1752892233205,-737.27,0.00018151,2]
[373178078,1752892233216,-737.27,0.00018151,2]
[373178079,1752892233226,-737.27,0.00018151,2]
[373178080,1752892233235,-232.81288095,0.00018151,2]
[373178085,1752892238406,-38.00711905,0.00018151,2]
[373178086,1752892238415,-270.82,0.00018151,2]
[373178087,1752892238423,-500.0,0.0001816,2]
[373178088,1752892238434,-276.71043209,0.0001816,2]
[373178089,1752892238443,-311.01479912,0.0001816,2]
[373178090,1752892238453,-226.18698482,0.0001816,2]
[373178091,1752892238462,-392.26033511,0.0001816,2]
[373178092,1752892238473,-500.0,0.0001816,2]
[373178093,1752892238486,-19808.76807981,0.00018161,2]
[373178288,1752892240572,-1844.5204124,0.00018161,2]
[373178290,1752892240585,-4683.56899249,0.00018161,2]
[373178292,1752892240597,-111579.28367543,0.00018161,2]
[373178296,1752892240627,-98603.83288234,0.00018161,2]
[373178308,1752892240737,-236147.02595753,0.00018161,2]
[373178311,1752892240747,-500.0,0.00018173,2]
[373178313,1752892240756,-500.0,0.00018173,2]
[373178314,1752892240766,-505.0,0.00018195,4]
[373178317,1752892240776,-371.17,0.00018329,2]
[373178319,1752892240786,-200.0,0.00018349,2]
[373178321,1752892240795,-1009.79720724,0.00018394,2]
[373178323,1752892240805,-598.95,0.00018399,2]
[373178325,1752892240814,-150.0,0.00018411,2]
[373178327,1752892240823,-150.0,0.00018424,2]
[373178329,1752892240832,-13648.52210361,0.00018475,2]
[373178331,1752892240842,-23900.0,0.00018485,2]
[373178333,1752892240851,-1000.0,0.0001863,2]
[373178334,1752892240860,-303.0,0.00018663,2]
[373178337,1752892240869,-150.0,0.00018699,2]
[373178338,1752892240879,-151.0,0.00018706,2]
[373178340,1752892240889,-250.72926575,0.00018706,2]
[373178342,1752892240899,-155.05103952,0.00018706,2]
[373178344,1752892240908,-160.0,0.00018706,2]
[373178346,1752892240918,-408.32397786,0.00018706,2]
[373178348,1752892240928,-7142.856,0.00018706,2]
[373178351,1752892240938,-510.29407179,0.00018706,2]
[373178354,1752892240947,-983.50865704,0.00018706,2]
[373178358,1752892240957,-151.0,0.00018706,2]
[373178361,1752892240966,-151.0,0.00018706,2]
[373178364,1752892240978,-151.0,0.00018706,2]
[373178367,1752892240986,-151.0,0.00018706,2]
[373178370,1752892240996,-151.0,0.00018706,2]
[373178372,1752892241006,-151.0,0.00018706,2]
[373178374,1752892241015,-151.0,0.00018706,2]
[373178376,1752892241025,-207.4,0.00018706,2]
[373178378,1752892241034,-151.0,0.00018706,2]
[373178380,1752892241044,-151.0,0.00018706,2]
[373178382,1752892241053,-151.0,0.00018706,2]
[373178384,1752892241063,-151.0,0.00018706,2]
[373178386,1752892241072,-151.0,0.00018706,2]
[373178388,1752892241081,-151.0,0.00018706,2]
[373178390,1752892241090,-151.0,0.00018706,2]
[373178392,1752892241099,-151.0,0.00018706,2]
[373178394,1752892241108,-450.27261386,0.00018721,2]
[373178395,1752892241118,-7407.141672,0.00018761,2]
[373178397,1752892241127,-150.0,0.0001878,2]
[373178399,1752892241137,-1000.0,0.00018813,2]
[373178401,1752892241145,-7681.20591386,0.00018816,2]
[373178403,1752892241155,-150.0,0.00018821,2]
[373178405,1752892241164,-10242.52061826,0.0001884,2]
[373178408,1752892241175,-168.01,0.00018846,2]
[373178409,1752892241186,-1151.0,0.00018847,2]
[373178412,1752892241196,-7965.41053268,0.00018871,2]
[373178414,1752892241206,-261.31777242,0.00018878,2]
[373178416,1752892241216,-8260.13072239,0.00018926,2]
[373178417,1752892241226,-420.7757,0.00018978,2]
[373178420,1752892241236,-229.5763,0.00018978,2]
[373178422,1752892241245,-274.0684,0.00018978,2]
[373178424,1752892241254,-8565.75555911,0.00018981,2]
[373178426,1752892241263,-150.0,0.00018986,2]
[373178428,1752892241273,-371.17,0.00019016,2]
[373178430,1752892241283,-206.12804484,0.00019027,2]
[373178432,1752892241292,-8882.6885148,0.00019036,2]
[373178434,1752892241302,-150.0,0.00019039,2]
[373178436,1752892241312,-197.7,0.00019071,2]
[373178438,1752892241321,-1926.53,0.00019078,2]
[373178440,1752892241332,-1000.0,0.00019078,2]
[373178442,1752892241341,-4089.6575,0.00019078,2]
[373178444,1752892241351,-5000.0,0.00019078,2]
[373178446,1752892241360,-10242.52061818,0.0001908,2]
[373178448,1752892241370,-5070.44029112,0.00019091,2]
[373178450,1752892241380,-36962.0,0.000191,2]
[373178452,1752892241390,-1815.81683518,0.000191,2]
[373178454,1752892241400,-150.77,0.00019106,2]
[373178456,1752892241409,-1927.04340061,0.00019177,2]
[373178458,1752892241420,-56212.2337137,0.00019178,2]
[373178505,1752892241857,-187.44475441,0.00019178,2]
[373178650,1752892243349,-210.84879039,0.0001902,2]
[373178652,1752892243358,-714.88093724,0.00019178,2]
[373178659,1752892243416,-946.25091937,0.00019178,2]
[373178944,1752892246273,-345.0,0.00019178,2]
[373178967,1752892246495,-24196.73430049,0.00019178,2]
[373178970,1752892246506,-2391.51662563,0.00019178,2]
[373178972,1752892246515,-461.52264973,0.00019178,2]
[373178974,1752892246526,-480.0,0.00019178,2]
[373178976,1752892246535,-461.60992438,0.00019178,2]
[373178977,1752892246544,-489.28919108,0.00019178,2]
[373178979,1752892246554,-463.28761172,0.00019178,2]
[373178981,1752892246563,-460.97549847,0.00019178,2]
[373178983,1752892246574,-480.0,0.00019178,2]
[373178985,1752892246583,-480.0,0.00019178,2]
[373178987,1752892246593,-480.0,0.00019178,2]
[373178989,1752892246602,-480.0,0.00019178,2]
[373178991,1752892246612,-293.40957151,0.00019178,2]
[373178993,1752892246621,-480.0,0.00019178,2]
[373178995,1752892246631,-480.0,0.00019178,2]
[373178997,1752892246640,-621.62,0.00019178,2]
[373178999,1752892246649,-480.0,0.00019178,2]
[373179001,1752892246658,-480.0,0.00019178,2]
[373179003,1752892246672,-480.0,0.00019178,2]
[373179005,1752892246681,-480.0,0.00019178,2]
[373179007,1752892246691,-480.0,0.00019178,2]
[373179009,1752892246700,-480.0,0.00019178,2]
[373179011,1752892246711,-480.0,0.00019178,2]
[373179013,1752892246720,-480.0,0.00019178,2]
[373179015,1752892246733,-480.0,0.00019178,2]
[373179017,1752892246742,-480.0,0.00019178,2]
[373179019,1752892246751,-480.0,0.00019178,2]
[373179021,1752892246760,-480.0,0.00019178,2]
[373179023,1752892246770,-480.0,0.00019178,2]
[373179025,1752892246780,-480.0,0.00019178,2]
[373179027,1752892246790,-480.0,0.00019178,2]
[373179029,1752892246799,-480.0,0.00019178,2]
[373179031,1752892246809,-163.70676008,0.00019178,2]
[373179033,1752892246818,-480.0,0.00019178,2]
[373179035,1752892246828,-562.93472069,0.00019178,2]
[373179037,1752892246837,-480.0,0.00019178,2]
[373179039,1752892246847,-480.0,0.00019178,2]
[373179041,1752892246856,-480.0,0.00019178,2]
[373179043,1752892246866,-480.0,0.00019178,2]
[373179045,1752892246875,-480.0,0.00019178,2]
[373179046,1752892246884,-480.0,0.00019178,2]
[373179048,1752892246894,-480.0,0.00019178,2]
[373179050,1752892246903,-480.0,0.00019178,2]
[373179053,1752892246913,-480.0,0.00019178,2]
[373179055,1752892246922,-480.0,0.00019178,2]
[373179057,1752892246931,-480.0,0.00019178,2]
[373179059,1752892246941,-480.0,0.00019178,2]
[373179061,1752892246951,-480.0,0.00019178,2]
[373179063,1752892246967,-480.0,0.00019178,2]
[373179065,1752892246987,-480.0,0.00019178,2]
[373179067,1752892246998,-480.0,0.00019178,2]
[373179069,1752892247007,-480.0,0.00019178,2]
[373179071,1752892247016,-480.0,0.00019178,2]
[373179073,1752892247026,-480.0,0.00019178,2]
[373179075,1752892247035,-251.91168474,0.00019178,2]
[373179076,1752892247046,-480.0,0.00019178,2]
[373179078,1752892247055,-480.0,0.00019178,2]
[373179080,1752892247065,-480.0,0.00019178,2]
[373179082,1752892247074,-480.0,0.00019178,2]
[373179084,1752892247083,-480.0,0.00019178,2]
[373179086,1752892247092,-480.0,0.00019178,2]
[373179088,1752892247102,-480.0,0.00019178,2]
[373179090,1752892247111,-480.0,0.00019178,2]
[373179092,1752892247120,-480.0,0.00019178,2]
[373179094,1752892247129,-480.0,0.00019178,2]
[373179096,1752892247139,-480.0,0.00019178,2]
[373179098,1752892247147,-480.0,0.00019178,2]
[373179100,1752892247156,-480.0,0.00019178,2]
[373179102,1752892247166,-480.0,0.00019178,2]
[373179104,1752892247175,-390.42247998,0.00019178,2]
[373179106,1752892247185,-480.0,0.00019178,2]
[373179108,1752892247194,-480.0,0.00019178,2]
[373179110,1752892247203,-480.0,0.00019178,2]
[373179112,1752892247213,-480.0,0.00019178,2]
[373179114,1752892247222,-480.0,0.00019178,2]
[373179115,1752892247232,-480.0,0.00019178,2]
[373179117,1752892247242,-480.0,0.00019178,2]
[373179119,1752892247251,-480.0,0.00019178,2]
[373179121,1752892247261,-480.0,0.00019178,2]
[373179123,1752892247270,-480.0,0.00019178,2]
[373179125,1752892247279,-480.0,0.00019178,2]
[373179127,1752892247288,-480.0,0.00019178,2]
[373179129,1752892247297,-480.0,0.00019178,2]
[373179131,1752892247307,-480.0,0.00019178,2]
[373179133,1752892247316,-537.86197444,0.00019178,2]
[373179135,1752892247326,-626.67,0.00019178,2]
[373179137,1752892247336,-480.0,0.00019178,2]
[373179139,1752892247346,-480.0,0.00019178,2]
[373179141,1752892247356,-480.0,0.00019178,2]
[373179143,1752892247366,-480.0,0.00019178,2]
[373179145,1752892247376,-434.07402244,0.00019178,2]
[373179147,1752892247387,-480.0,0.00019178,2]
[373179149,1752892247397,-480.0,0.00019178,2]
[373179151,1752892247407,-480.0,0.00019178,2]
[373179153,1752892247418,-480.0,0.00019178,2]
[373179155,1752892247427,-480.0,0.00019178,2]
[373179157,1752892247439,-360.31181516,0.00019178,2]
[373179159,1752892247449,-462.53364301,0.00019178,2]
[373179161,1752892247458,-480.0,0.00019178,2]
[373179163,1752892247469,-497.67507979,0.00019178,2]
[373179165,1752892247483,-480.0,0.00019178,2]
[373179167,1752892247492,-480.0,0.00019178,2]
[373179169,1752892247505,-480.0,0.00019178,2]
[373179171,1752892247514,-449.19847441,0.00019178,2]
[373179173,1752892247524,-480.0,0.00019178,2]
[373179175,1752892247533,-480.0,0.00019178,2]
[373179177,1752892247545,-480.0,0.00019178,2]
[373179179,1752892247554,-480.0,0.00019178,2]
[373179181,1752892247563,-480.0,0.00019178,2]
[373179183,1752892247573,-480.0,0.00019178,2]
[373179185,1752892247583,-480.0,0.00019178,2]
[373179187,1752892247592,-480.0,0.00019178,2]
[373179189,1752892247602,-580.05,0.00019178,2]
[373179191,1752892247611,-480.0,0.00019178,2]
[373179193,1752892247621,-480.0,0.00019178,2]
[373179195,1752892247630,-480.0,0.00019178,2]
[373179197,1752892247639,-480.0,0.00019178,2]
[373179198,1752892247648,-480.0,0.00019178,2]
[373179200,1752892247659,-480.0,0.00019178,2]
[373179202,1752892247670,-480.0,0.00019178,2]
[373179204,1752892247680,-903.92,0.00019178,2]
[373179206,1752892247690,-1122.01,0.00019178,2]
[373179208,1752892247700,-480.0,0.00019178,2]
[373179210,1752892247710,-480.0,0.00019178,2]
[373179213,1752892247721,-719.21,0.00019178,2]
[373179214,1752892247734,-480.0,0.00019178,2]
[373179216,1752892247745,-480.0,0.00019178,2]
[373179218,1752892247755,-480.0,0.00019178,2]
[373179220,1752892247764,-480.0,0.00019178,2]
[373179222,1752892247774,-480.0,0.00019178,2]
[373179224,1752892247784,-480.0,0.00019178,2]
[373179226,1752892247794,-495.89,0.00019178,2]
[373179228,1752892247804,-480.0,0.00019178,2]
[373179230,1752892247813,-480.0,0.00019178,2]
[373179232,1752892247823,-958.99,0.00019178,2]
[373179234,1752892247832,-480.0,0.00019178,2]
[373179236,1752892247841,-932.2,0.00019178,2]
[373179238,1752892247850,-480.0,0.00019178,2]
[373179240,1752892247859,-480.0,0.00019178,2]
[373179242,1752892247868,-1000.6,0.00019178,2]
[373179244,1752892247878,-621.37,0.00019178,2]
[373179246,1752892247887,-480.0,0.00019178,2]
[373179248,1752892247896,-498.14,0.00019178,2]
[373179250,1752892247905,-1061.34,0.00019178,2]
[373179251,1752892247914,-460.0,0.00019178,2]
[373179253,1752892247924,-480.0,0.00019178,2]
[373179255,1752892247934,-1222.68,0.00019178,2]
[373179258,1752892247944,-480.0,0.00019178,2]
[373179259,1752892247953,-853.6,0.00019178,2]
[373179261,1752892247963,-480.0,0.00019178,2]
[373179263,1752892247973,-480.0,0.00019178,2]
[373179265,1752892247986,-480.0,0.00019178,2]
[373179267,1752892247995,-701.35,0.00019178,2]
[373179269,1752892248005,-635.1,0.00019178,2]
[373179271,1752892248014,-992.03,0.00019178,2]
[373179273,1752892248023,-828.47,0.00019178,2]
[373179275,1752892248032,-613.31,0.00019178,2]
[373179277,1752892248042,-480.0,0.00019178,2]
[373179279,1752892248051,-480.0,0.00019178,2]
[373179281,1752892248060,-4497.64,0.00019178,2]
[373179283,1752892248070,-480.0,0.00019178,2]
[373179285,1752892248079,-1249.65,0.00019178,2]
[373179287,1752892248088,-480.0,0.00019178,2]
[373179289,1752892248099,-557.9,0.00019178,2]
[373179291,1752892248110,-480.0,0.00019178,2]
[373179293,1752892248121,-856.42,0.00019178,2]
[373179295,1752892248131,-440.0,0.00019178,2]
[373179297,1752892248140,-650.21,0.00019178,2]
[373179299,1752892248148,-480.0,0.00019178,2]
[373179301,1752892248158,-480.0,0.00019178,2]
[373179303,1752892248167,-482.78276194,0.00019178,2]
[373179305,1752892248176,-480.0,0.00019178,2]
[373179307,1752892248186,-670.61,0.00019178,2]
[373179309,1752892248195,-480.0,0.00019178,2]
[373179311,1752892248205,-480.0,0.00019178,2]
[373179313,1752892248214,-480.0,0.00019178,2]
[373179315,1752892248223,-466.80549403,0.00019178,2]
[373179316,1752892248233,-480.0,0.00019178,2]
[373179318,1752892248243,-480.0,0.00019178,2]
[373179320,1752892248252,-480.0,0.00019178,2]
[373179323,1752892248261,-480.0,0.00019178,2]
[373179324,1752892248271,-480.0,0.00019178,2]
[373179326,1752892248280,-480.0,0.00019178,2]
[373179328,1752892248289,-1707.03,0.00019178,2]
[373179330,1752892248298,-936.03,0.00019178,2]
[373179332,1752892248308,-1921.65,0.00019178,2]
[373179334,1752892248317,-531.18,0.00019178,2]
[373179336,1752892248326,-1133.96,0.00019178,2]
[373179338,1752892248335,-831.69,0.00019178,2]
[373179340,1752892248345,-480.0,0.00019178,2]
[373179342,1752892248355,-1893.96,0.00019178,2]
[373179344,1752892248363,-480.0,0.00019178,2]
[373179346,1752892248372,-480.0,0.00019178,2]
[373179348,1752892248381,-480.0,0.00019178,2]
[373179350,1752892248391,-480.0,0.00019178,2]
[373179352,1752892248400,-600.85,0.00019178,2]
[373179354,1752892248410,-480.0,0.00019178,2]
[373179356,1752892248419,-683.88,0.00019178,2]
[373179358,1752892248428,-480.0,0.00019178,2]
[373179360,1752892248438,-1404.1,0.00019178,2]
[373179362,1752892248447,-480.0,0.00019178,2]
[373179364,1752892248457,-480.0,0.00019178,2]
[373179365,1752892248466,-634.06,0.00019178,2]
[373179367,1752892248475,-583.83,0.00019178,2]
[373179369,1752892248489,-480.0,0.00019178,2]
[373179371,1752892248503,-480.0,0.00019178,2]
[373179373,1752892248513,-480.0,0.00019178,2]
[373179375,1752892248522,-480.0,0.00019178,2]
[373179377,1752892248532,-486.68,0.00019178,2]
[373179379,1752892248542,-480.0,0.00019178,2]
[373179381,1752892248552,-1315.97,0.00019178,2]
[373179383,1752892248562,-659.88,0.00019178,2]
[373179385,1752892248576,-480.0,0.00019178,2]
[373179387,1752892248587,-1902.08,0.00019178,2]
[373179389,1752892248597,-637.8,0.00019178,2]
[373179391,1752892248606,-1443.24,0.00019178,2]
[373179393,1752892248615,-543.52,0.00019178,2]
[373179395,1752892248624,-2717.91,0.00019178,2]
[373179397,1752892248633,-480.0,0.00019178,2]
[373179399,1752892248643,-480.0,0.00019178,2]
[373179401,1752892248652,-1481.77,0.00019178,2]
[373179403,1752892248662,-480.0,0.00019178,2]
[373179405,1752892248672,-561.78,0.00019178,2]
[373179406,1752892248681,-480.0,0.00019178,2]
[373179409,1752892248691,-1000.0,0.00019178,2]
[373179411,1752892248701,-1249.36,0.00019178,2]
[373179413,1752892248710,-496.62,0.00019178,2]
[373179414,1752892248720,-480.0,0.00019178,2]
[373179416,1752892248730,-1382.03,0.00019178,2]
[373179418,1752892248740,-480.0,0.00019178,2]
[373179420,1752892248749,-876.61,0.00019178,2]
[373179422,1752892248759,-480.0,0.00019178,2]
[373179424,1752892248769,-1406.77,0.00019178,2]
[373179426,1752892248778,-480.0,0.00019178,2]
[373179428,1752892248787,-740.88,0.00019178,2]
[373179430,1752892248797,-480.0,0.00019178,2]
[373179432,1752892248806,-547.35,0.00019178,2]
[373179434,1752892248815,-480.0,0.00019178,2]
[373179436,1752892248825,-973.18,0.00019178,2]
[373179438,1752892248834,-1350.62,0.00019178,2]
[373179440,1752892248844,-541.73,0.00019178,2]
[373179442,1752892248853,-480.0,0.00019178,2]
[373179443,1752892248863,-480.0,0.00019178,2]
[373179444,1752892248873,-1306.1,0.00019178,2]
[373179445,1752892248882,-480.0,0.00019178,2]
[373179446,1752892248891,-480.0,0.00019178,2]
[373179447,1752892248901,-480.0,0.00019178,2]
[373179448,1752892248910,-739.65,0.00019178,2]
[373179449,1752892248920,-480.0,0.00019178,2]
[373179450,1752892248930,-1189.19,0.00019178,2]
[373179451,1752892248940,-906.13,0.00019178,2]
[373179452,1752892248949,-787.77,0.00019178,2]
[373179453,1752892248958,-480.0,0.00019178,2]
[373179454,1752892248967,-480.0,0.00019178,2]
[373179455,1752892248977,-480.0,0.00019178,2]
[373179457,1752892248988,-642.48,0.00019178,2]
[373179459,1752892248998,-636.75,0.00019178,2]
[373179461,1752892249007,-480.0,0.00019178,2]
[373179463,1752892249016,-733.27,0.00019178,2]
[373179465,1752892249028,-480.0,0.00019178,2]
[373179467,1752892249037,-480.0,0.00019178,2]
[373179469,1752892249046,-480.0,0.00019178,2]
[373179471,1752892249056,-480.0,0.00019178,2]
[373179473,1752892249065,-661.31,0.00019178,2]
[373179475,1752892249074,-2106.96,0.00019178,2]
[373179477,1752892249084,-480.0,0.00019178,2]
[373179479,1752892249093,-480.0,0.00019178,2]
[373179481,1752892249104,-480.0,0.00019178,2]
[373179483,1752892249113,-480.0,0.00019178,2]
[373179485,1752892249123,-787.65,0.00019178,2]
[373179487,1752892249133,-480.0,0.00019178,2]
[373179489,1752892249143,-1171.85,0.00019178,2]
[373179491,1752892249153,-480.0,0.00019178,2]
[373179493,1752892249164,-480.0,0.00019178,2]
[373179495,1752892249174,-614.92,0.00019178,2]
[373179497,1752892249183,-480.0,0.00019178,2]
[373179499,1752892249192,-480.0,0.00019178,2]
[373179501,1752892249202,-480.0,0.00019178,2]
[373179503,1752892249211,-2066.42,0.00019178,2]
[373179505,1752892249220,-480.0,0.00019178,2]
[373179508,1752892249231,-480.0,0.00019178,2]
[373179510,1752892249242,-480.0,0.00019178,2]
[373179512,1752892249251,-480.0,0.00019178,2]
[373179514,1752892249260,-480.0,0.00019178,2]
[373179516,1752892249270,-11419.19,0.00019178,2]
[373179518,1752892249279,-480.0,0.00019178,2]
[373179520,1752892249288,-480.0,0.00019178,2]
[373179522,1752892249297,-484.25,0.00019178,2]
[373179523,1752892249306,-480.0,0.00019178,2]
[373179525,1752892249315,-480.0,0.00019178,2]
[373179527,1752892249324,-602.94,0.00019178,2]
[373179529,1752892249334,-647.46,0.00019178,2]
[373179531,1752892249343,-480.0,0.00019178,2]
[373179533,1752892249352,-480.0,0.00019178,2]
[373179535,1752892249362,-480.0,0.00019178,2]
[373179537,1752892249371,-266.2313756,0.00019178,2]
[373179539,1752892249380,-1684.49,0.00019178,2]
[373179541,1752892249389,-480.0,0.00019178,2]
[373179543,1752892249398,-649.1,0.00019178,2]
[373179545,1752892249407,-480.0,0.00019178,2]
[373179547,1752892249416,-480.0,0.00019178,2]
[373179549,1752892249426,-168.54,0.00019178,2]
[373179551,1752892249434,-152.34,0.00019178,2]
[373179553,1752892249444,-1386.08,0.00019186,2]
[373179555,1752892249454,-4985.31,0.00019186,2]
[373179557,1752892249463,-480.0,0.00019186,2]
[373179559,1752892249472,-480.0,0.00019186,2]
[373179561,1752892249485,-859.89,0.00019186,2]
[373179563,1752892249500,-5904.0191,0.00019187,2]
[373179565,1752892249510,-6060.04,0.000192,3]
[373179567,1752892249519,-117803.0,0.000192,2]
[373179569,1752892249528,-1815.79,0.0001921,2]
[373179571,1752892249539,-5355.1602417,0.0001921,2]
[373179573,1752892249548,-598.95,0.00019235,2]
[373179575,1752892249557,-351.8573616,0.00019268,2]
[373179577,1752892249568,-150.0,0.00019268,2]
[373179579,1752892249577,-150.0,0.00019274,4]
[373179581,1752892249588,-205.43265929,0.00019276,2]
[373179583,1752892249598,-152.22908317,0.00019286,2]
[373179585,1752892249607,-480.0,0.00019286,2]